[Event "European Women-ch 2023"]
[Site "Petrovac"]
[Date "2023.03.19"]
[Round "2.8"]
[White "Zaksaite, Salomeja"]
[Black "Heinemann, Josefine"]
[Result "1/2-1/2"]
[ECO "D00"]
[WhiteElo "2187"]
[BlackElo "2343"]
[Annotator "TA"]
[PlyCount "207"]
[EventDate "2023.03.15"]
[EventType "swiss"]
[EventCountry "MNE"]
[SourceTitle "playchess.com"]
[Source "ChessBase"]
[SourceQuality "1"]
[TimeControl "40/5400+30:1800+30"]

{[%evp 9,207,0,0,0,0,0,9,0,-8,-47,-27,-31,-38,-34,-24,-29,-34,-24,-31,-46,-6,-19,16,21,16,19,12,12,18,30,20,0,0,0,0,-29,-12,-20,40,-136,-130,-111,-68,-82,-63,-88,-72,-56,0,0,112,122,184,0,0,0,0,0,18,9,9,9,9,9,8,8,8,8,34,77,263,256,403,405,402,382,243,92,365,305,675,654,661,651,630,548,648,101,101,100,97,96,96,99,91,90,112,8,8,8,8,8,8,8,8,8,8,8,8,8,8,8,8,8,8,8,8,8,8,8,8,8,8,8,8,8,8,7,8,8,8,8,8,0,7,0,8,7,8,8,8,0,0,0,8,0,0,0,8,0,8,0,8,8,8,8,8,0,0,0,8,8,8,8,8,0,8,0,0,0,8,8,8,8,8,8,8,0,8,0,8,0,8,0,8,0,8,0,0,0,0,0,0,0,0,0,0,0,0,-4590]} 1. d4 {[%emt 0:00:09]} Nf6 {[%emt 0:00:09]} 2. Nc3 {[%emt 0:00:05]} d5 {[%emt 0:00:13]} 3. Bf4 {[%emt 0:00:05]} c5 {[%emt 0:01:43]} 4. e4 {[%emt 0:00:15]} Nxe4 {[%emt 0:00:37]} 5. Nxe4 {[%emt 0:00:26]} dxe4 {[%emt 0:00:06]} 6. dxc5 {[%emt 0:00:03] D00: 1 d4 d5: Unusual lines.} Qxd1+ {[%emt 0:01:07]} 7. Rxd1 {[%emt 0:00:06] Strongly threatening Bxb8.} Nc6 {[%emt 0:00:10] Black is weak on the dark squares} 8. Bb5 {[%emt 0:10:17]} f6 {[%emt 0:03:57]} 9. Ne2 {[%emt 0:01:50][%cal Bg1e2,Be2c3,Bc3d5,Bd5f4][%mdl 32]} e5 {[%emt 0:04:43]} 10. Be3 {[%emt 0:00:45]} Be6 {[%emt 0:00:28][%cal Oe8f7] [#]} 11. O-O $146 {[%emt 0:08:45]} ({Predecessor:} 11. Nc3 f5 12. O-O Rd8 13. b4 Be7 14. a3 Kf7 15. Ba4 a5 16. Rb1 axb4 17. axb4 {0-1 Bortnyk,O (2605)-Praggnanandhaa,R (2690) Airthings Masters Div 3 L rapid 2023 (7.4)}) 11... Rc8 {[%emt 0:07:05][%cal Oe8f7]} 12. Nc3 {[%emt 0:09:08]} f5 {[%emt 0:02:01]} 13. b4 {[%emt 0:00:20]} Kf7 {[%emt 0:04:48]} 14. a3 {[%emt 0:06:10]} h6 {[%emt 0:04:43]} 15. Nd5 {[%emt 0:19:11]} f4 {[%emt 0:06:18]} (15... g6 $5 {[%cal Rf8g7]}) 16. Bc1 {[%emt 0:00:06]} Nd4 {[%emt 0:00:22] [#]} 17. Rxd4 {[%emt 0:00:10][%mdl 64] Deflection} exd4 {[%emt 0:00:40]} 18. Nxf4 {[%emt 0:00:05]} b6 {[%emt 0:09:18]} 19. Ba6 {[%emt 0:10:07] aiming for Nxe6.} Be7 {[%emt 0:07:08][%cal Ob6c5]} 20. Bxc8 {[%emt 0:02:35]} Rxc8 {[%emt 0:00:06]} 21. Re1 {[%emt 0:15:35]} Bf5 {[%emt 0:05:12]} 22. g4 {[%emt 0:01:02]} Bh7 {[%emt 0:00:23]} 23. Nd5 $1 {[%emt 0:03:11]} Bf8 {[%emt 0:04:24]} (23... bxc5 $11 24. Nxe7 Kxe7) 24. c4 $2 {[%emt 0:00:48]} (24. cxb6 $14 {is the one way to stay ahead.} axb6 25. c3 (25. Bb2 $2 Rxc2 26. Bxd4 Rd2 $19)) 24... bxc5 $17 {[%emt 0:02:28]} 25. b5 {[%emt 0:00:07]} g5 {[%emt 0:02:09]} 26. a4 {[%emt 0:00:14]} Bd6 {[%emt 0:03:59][%cal Oe4e3]} 27. Bd2 {[%emt 0:01:09]} Ke6 {[%emt 0:01:22]} 28. a5 {[%emt 0:00:34]} Bg6 {[%emt 0:02:51]} (28... Rf8 $15 29. a6 Bb8) 29. a6 $11 {[%emt 0:04:03]} Be5 {[%emt 0:06:36]} (29... Bb8 $11 {remains equal.}) 30. b6 $1 $16 {[%emt 0:02:57] f4 would be deadly.} axb6 {[%emt 0:00:30]} (30... Rf8 $16 {might work better.}) 31. a7 $2 {[%emt 0:02:55]} (31. Rb1 $18) 31... Ra8 $11 {[%emt 0:03:15]} 32. Ra1 {[%emt 0:00:04]} e3 $1 {[%emt 0:01:26]} 33. fxe3 {[%emt 0:02:08]} dxe3 {[%emt 0:00:09]} (33... Be4 $5 {[%cal Re4d5]} 34. Nxb6 (34. Ra6 Bxd5 35. Rxb6+ Kd7 $15) 34... dxe3 35. Nxa8 exd2 $11) 34. Bxe3 {[%emt 0:00:35]} Be4 $1 $132 {[%emt 0:05:44][%mdl 2048] Black has counterplay} 35. Ra6 {[%emt 0:00:23]} Bxd5 {[%emt 0:00:28] This pair of bishops is nice.} 36. Rxb6+ {[%emt 0:00:06]} Kd7 {[%emt 0:01:48]} 37. cxd5 {[%emt 0:00:42]} Rxa7 {[%emt 0:00:33]} 38. Rxh6 {[%emt 0:01:27][%mdl 4096] Endgame Rh7+ is the strong threat. KRB-KRB} Ra1+ {[%emt 0:00:06]} 39. Kg2 {[%emt 0:00:05]} Ra2+ $2 {[%emt 0:00:10]} (39... Rd1 $16 {is a better defense.}) 40. Kf3 $18 {[%emt 0:00:00]} Bxh2 {[%emt 0:00:00]} (40... c4 {was necessary.} 41. h3 (41. Bxg5 Bxh2 42. Rh7+ Kc8 $18) 41... Bd6 42. Rh7+ Kc8) 41. Bxc5 {[%emt 0:01:10]} (41. Bxg5 Be5 42. Ke4 Re2+ 43. Kf5 Bg3 $18) 41... Bf4 {[%emt 0:06:07] [#]} 42. Rh7+ $1 {[%emt 0:00:09]} Ke8 {[%emt 0:00:58]} 43. Bd4 $2 {[%emt 0:18:47]} (43. Re7+ $18 Kd8 44. Rg7) 43... Rd2 $2 {[%emt 0:06:03][%mdl 8192]} (43... Ra4 $16 44. Bf6 Bd6) 44. Ke4 {[%emt 0:00:50]} Re2+ $2 {[%emt 0:00:12]} (44... Bd6 45. Bf6 Bf4 46. Re7+ Kf8) 45. Kf5 {[%emt 0:00:51]} Rd2 {[%emt 0:00:48] [#]} 46. Ke6 $1 {[%emt 0:00:50][%cal Rh7h8]} Re2+ {[%emt 0:00:07] [#]} 47. Kf6 $1 {[%emt 0:00:04]} Bd6 {[%emt 0:05:07]} 48. Rh8+ $2 {[%emt 0:04:02]} (48. Kxg5 $18 Rd2 49. Bf6 (49. Rh8+ Kd7 $16) 49... Rxd5+ 50. Kg6) 48... Kd7 $16 {[%emt 0:00:10]} 49. Kxg5 {[%emt 0:00:23]} Rd2 {[%emt 0:00:51]} 50. Rh7+ {[%emt 0:01:03]} Kc8 {[%emt 0:02:25]} 51. Bf6 {[%emt 0:00:31] Black must now prevent Kf5.} Rxd5+ {[%emt 0:00:04]} 52. Kg6 {[%emt 0:00:04] White is more active.} Bf4 {[%emt 0:00:47]} 53. g5 {[%emt 0:00:11]} (53. Rh8+ $16 Kb7 54. Rd8) 53... Bxg5 $11 {[%emt 0:01:51] The position is equal.} 54. Bxg5 {[%emt 0:00:03] KRB-KR} Rd7 {[%emt 0:00:05]} 55. Be7 {[%emt 0:01:06]} Kc7 {[%emt 0:00:12]} 56. Kf5 {[%emt 0:00:42]} Kc6 {[%emt 0:00:14]} 57. Ke6 {[%emt 0:00:12]} Rd2 {[%emt 0:00:19]} 58. Bf6 {[%emt 0:00:09]} Rd6+ {[%emt 0:00:12]} 59. Ke5 {[%emt 0:00:22]} Rd5+ {[%emt 0:00:03]} 60. Ke4 {[%emt 0:00:06]} Rd1 {[%emt 0:00:42]} 61. Bd4 {[%emt 0:00:27]} Re1+ {[%emt 0:00:49]} 62. Be3 {[%emt 0:00:08]} Rd1 {[%emt 0:00:21]} 63. Rh6+ {[%emt 0:00:04]} Rd6 {[%emt 0:00:45]} 64. Rh1 {[%emt 0:01:38]} Re6+ {[%emt 0:00:26]} 65. Kd4 {[%emt 0:00:15]} Rd6+ {[%emt 0:00:52]} 66. Kc4 {[%emt 0:00:04]} Rg6 {[%emt 0:01:12]} 67. Bd4 {[%emt 0:01:31]} Kd6 {[%emt 0:00:30]} 68. Bc5+ {[%emt 0:01:11]} Ke6 {[%emt 0:00:12]} 69. Re1+ {[%emt 0:00:03]} Kf7 {[%emt 0:01:51]} 70. Re7+ {[%emt 0:04:03]} Kf6 {[%emt 0:00:18]} 71. Rb7 {[%emt 0:00:29]} Ke5 {[%emt 0:00:52]} 72. Bd4+ {[%emt 0:00:06]} Ke6 {[%emt 0:00:06]} 73. Ra7 {[%emt 0:01:03]} Rg5 {[%emt 0:02:07]} 74. Ra6+ {[%emt 0:00:13]} Kf5 {[%emt 0:00:19]} 75. Rf6+ {[%emt 0:01:10]} Kg4 {[%emt 0:00:13]} 76. Kd3 {[%emt 0:00:58]} Rf5 {[%emt 0:00:29]} 77. Rg6+ {[%emt 0:01:01]} Kf3 {[%emt 0:00:41]} 78. Rg1 {[%emt 0:00:51]} Kf4 {[%emt 0:02:06]} 79. Re1 {[%emt 0:03:07]} Kg5 {[%emt 0:00:57]} 80. Ke4 {[%emt 0:00:31] White threatens Rg1+ and mate.} Rf4+ {[%emt 0:00:30]} 81. Kd5 {[%emt 0:00:19]} Kf5 {[%emt 0:00:22]} 82. Re8 {[%emt 0:00:11]} Kg4 {[%emt 0:01:02]} 83. Be5 {[%emt 0:01:19]} Rf5 {[%emt 0:02:09]} 84. Ke4 {[%emt 0:00:07]} Rg5 {[%emt 0:00:03]} 85. Ra8 {[%emt 0:00:41]} Rg6 {[%emt 0:00:07]} 86. Ra1 {[%emt 0:00:13]} Rg5 {[%emt 0:00:16]} 87. Bf4 {[%emt 0:00:31]} Rg6 {[%emt 0:00:33]} 88. Rb1 {[%emt 0:00:41]} Re6+ {[%emt 0:00:08]} 89. Be5 {[%emt 0:00:03] Intending Rg1+ and mate.} Rg6 {[%emt 0:00:05]} 90. Rf1 {[%emt 0:01:21]} Rg5 {[%emt 0:00:56]} 91. Rf4+ {[%emt 0:00:38]} Kh5 {[%emt 0:00:24]} 92. Rf7 {[%emt 0:00:13]} Kg4 {[%emt 0:00:33]} 93. Rf4+ {[%emt 0:00:47]} Kh5 {[%emt 0:00:04]} 94. Rf1 {[%emt 0:00:08]} Kg4 {[%emt 0:00:14]} 95. Bf6 {[%emt 0:00:11] White wants to mate with Rg1+.} Rg6 {[%emt 0:00:18]} 96. Ke5 {[%emt 0:00:04]} Kh5 {[%emt 0:00:52]} 97. Be7 {[%emt 0:00:56]} Kg4 {[%emt 0:00:54]} 98. Rf4+ {[%emt 0:00:12]} Kg3 {[%emt 0:00:15]} 99. Bh4+ {[%emt 0:00:15]} Kh3 {[%emt 0:00:34]} 100. Kf5 {[%emt 0:00:58]} Rg8 {[%emt 0:00:05]} 101. Rf1 {[%emt 0:00:35]} Kg2 {[%emt 0:00:27] Inhibits Rh1.} 102. Rf2+ {[%emt 0:00:08]} Kh3 {[%emt 0:00:22]} 103. Ra2 {[%emt 0:00:57]} Kxh4 {[%emt 0:00:51]} 104. Rh2+ $2 {[%emt 0:00:46][%mdl 40960] What a bad dream for White.   Weighted Error Value: White=0.31/Black=0.39. An unexpected result.} (104. Ra3 $11) 1/2-1/2

[Event "European Women-ch 2023"]
[Site "Petrovac"]
[Date "2023.03.19"]
[Round "2.8"]
[White "Pavlidou, Ekaterini"]
[Black "Lomaia, Diana"]
[Result "0-1"]
[ECO "A17"]
[WhiteElo "2178"]
[BlackElo "1950"]
[Annotator "TA"]
[PlyCount "80"]
[EventDate "2023.03.15"]
[EventType "swiss"]
[EventCountry "MNE"]
[SourceTitle "playchess.com"]
[Source "ChessBase"]
[SourceQuality "1"]
[TimeControl "40/5400+30:1800+30"]

{[%evp 9,80,8,10,0,0,0,6,-23,-8,-27,-14,-22,-12,-18,-9,-27,0,-24,-16,-27,-26,-28,-13,-16,-5,-15,0,-13,-6,0,0,-62,-45,-69,-53,-92,-93,-87,-88,-106,-96,-129,-109,-140,-128,-152,-144,-216,-86,-85,-94,-114,0,-80,0,0,0,-118,-114,-102,-75,-125,-16,-383,-372,-1015,-1006,-5352,-5306,-1801,-1637,-1088,-1073]} 1. Nf3 {[%emt 0:00:19]} Nf6 {[%emt 0:00:52]} 2. c4 {[%emt 0:00:42]} e6 {[%emt 0:00:56]} 3. Nc3 {[%emt 0:00:33]} b6 {[%emt 0:11:14]} 4. e4 {[%emt 0:02:58]} Bb7 {[%emt 0:04:01]} 5. e5 {[%emt 0:05:22]} Ne4 {[%emt 0:03:39]} 6. Nxe4 {[%emt 0:10:34] A17: English Opening: 1...Nf6 with ...Bb4.} Bxe4 {[%emt 0:00:04]} 7. Be2 {[%emt 0:01:18]} Be7 {[%emt 0:05:23] [#]} 8. a3 $146 {[%emt 0:06:52] The position is equal.} ({Predecessor:} 8. O-O O-O 9. d4 d6 {½-½ Lalic,B (2397)-Bukal,V (2388) Spilimbergo op 15th 2017 (3)}) 8... d6 {[%emt 0:09:24]} 9. d3 {[%emt 0:06:59]} Bb7 {[%emt 0:01:26]} 10. exd6 {[%emt 0:05:26]} Qxd6 {[%emt 0:01:33]} 11. d4 {[%emt 0:00:53]} Bf6 {[%emt 0:06:45]} 12. Be3 {[%emt 0:01:32]} O-O {[%emt 0:04:22]} (12... Nc6 $5 {[%cal Re8c8]}) 13. Qd2 {[%emt 0:00:58]} Rd8 {[%emt 0:03:46]} 14. Rd1 {[%emt 0:02:59]} Qe7 {[%emt 0:04:25]} 15. Qc1 {[%emt 0:03:31]} Nd7 {[%emt 0:04:14][%cal Bb8d7,Bd7e5,Be5g6,Bg6f4][%mdl 32]} 16. O-O {[%emt 0:03:26]} c5 {[%emt 0:01:46]} 17. Rfe1 {[%emt 0:01:25]} cxd4 {[%emt 0:01:13]} 18. Nxd4 {[%emt 0:00:21]} Ne5 {[%emt 0:05:36]} 19. Nb5 {[%emt 0:03:08]} Bc6 {[%emt 0:12:25]} 20. f4 {[%emt 0:05:22]} (20. c5 $11) 20... Ng6 $15 {[%emt 0:02:50]} 21. Nd4 {[%emt 0:00:49]} Be4 {[%emt 0:02:09][%cal Og6f4]} (21... Bb7 $5 {[%cal Rg6f4]} 22. Nf3 e5 $17) 22. Bf1 {[%emt 0:03:40] [#]} Nxf4 $1 {[%emt 0:07:40][%mdl 64] Deflection} 23. Bf2 {[%emt 0:00:22] [#]} Bg5 {[%emt 0:01:04] Black is much more active.} 24. Qc3 {[%emt 0:03:39] Repels Nh3+} (24. Rxe4 $2 {is the wrong capture.} Nh3+ 25. gxh3 Bxc1 $19) 24... Bb7 {[%emt 0:02:20]} 25. Qg3 {[%emt 0:04:03]} Qf6 {[%emt 0:00:34]} 26. h4 {[%emt 0:01:31]} Bh6 {[%emt 0:00:15]} 27. b4 {[%emt 0:00:56]} e5 {[%emt 0:02:16]} 28. Nb5 {[%emt 0:00:18]} (28. Ne2 $17 {is a better defense.}) 28... a6 {[%emt 0:00:28]} (28... Rxd1 $19 29. Rxd1 Bxg2) 29. Nc3 $17 {[%emt 0:00:31]} Rxd1 {[%emt 0:01:44]} 30. Rxd1 {[%emt 0:00:33]} Qc6 {[%emt 0:00:08]} (30... Re8 $17 31. c5 bxc5 32. bxc5 g6) 31. b5 {[%emt 0:02:12]} (31. Qg4 $1 $11 {remains equal.}) 31... Qe6 {[%emt 0:00:54]} (31... axb5 $17 32. cxb5 Qe6) 32. bxa6 $11 {[%emt 0:10:54]} Bxa6 {[%emt 0:00:20]} 33. Nb5 {[%emt 0:05:02] [#]} (33. Nd5 $11 {keeps the balance.} Nxd5 34. cxd5) 33... Bxb5 $1 $17 {[%emt 0:00:26]} 34. cxb5 {[%emt 0:00:01]} g6 {[%emt 0:00:20]} 35. Qe3 {[%emt 0:01:22]} ({White should try} 35. Re1) 35... Rb8 {[%emt 0:00:45]} (35... Qg4 $17 36. Re1 Nxg2 {[%mdl 64] Discovered Attack}) 36. Qe4 $2 {[%emt 0:00:25][%mdl 8192] [#] Loses the game.} (36. g3 $11 {and White stays safe.}) 36... Qg4 $1 $19 {[%emt 0:00:31] White must now prevent ...Nh3+.} 37. Qxe5 $2 {[%emt 0:01:19]} (37. Qf3 Nh3+ {[%mdl 64] Deflection} 38. Qxh3 Qxd1 39. Qc3) 37... Nh3+ {[%emt 0:00:06][%mdl 64] Deflection. Black is clearly winning.} 38. Kh1 {[%emt 0:00:18]} Nxf2+ {[%emt 0:00:05]} 39. Kg1 {[%emt 0:00:01]} Nh3+ {[%emt 0:00:27]} 40. Kh1 {[%emt 0:00:00]} Qxd1 {[%emt 0:00:00] Weighted Error Value: White=0.60/Black=0.21 (precise)} 0-1

[Event "European Women-ch 2023"]
[Site "Petrovac"]
[Date "2023.03.19"]
[Round "2.9"]
[White "Mkrtchyan, Mariam"]
[Black "Petrova, Irina"]
[Result "1-0"]
[ECO "E62"]
[WhiteElo "2343"]
[BlackElo "2123"]
[Annotator "TA"]
[PlyCount "83"]
[EventDate "2023.03.15"]
[EventType "swiss"]
[EventCountry "MNE"]
[SourceTitle "playchess.com"]
[Source "ChessBase"]
[SourceQuality "1"]
[TimeControl "40/5400+30:1800+30"]

{[%evp 9,83,27,22,11,22,20,26,9,20,16,33,11,25,29,72,62,66,58,94,106,85,76,67,77,88,80,104,67,82,29,35,0,0,0,0,0,28,0,0,0,0,-93,-82,-77,0,0,0,0,102,-38,82,59,70,0,0,-279,-296,-294,-117,-89,-59,-122,0,0,0,0,0,0,26,26,22,0,1240,1163,29990,29991]} 1. d4 {[%emt 0:00:03]} d6 {[%emt 0:00:05]} 2. Nf3 {[%emt 0:00:21]} g6 {[%emt 0:00:08]} 3. c4 {[%emt 0:00:22]} Bg7 {[%emt 0:00:08]} 4. Nc3 {[%emt 0:00:08]} Nf6 {[%emt 0:02:18]} 5. g3 {[%emt 0:00:11]} c6 {[%emt 0:01:22]} 6. e4 {[%emt 0:03:20] E62: King's Indian: Fianchetto: 6...c6 and Panno Variation (6...Nc6) without ...a6.} Qa5 {[%emt 0:05:41]} 7. Bd2 {[%emt 0:05:48] [#]} O-O $146 {[%emt 0:04:45]} ({Predecessor:} 7... Qh5 8. Be2 Qh3 9. Ng5 Qd7 10. f4 h6 11. Nf3 Na6 12. Rc1 Qd8 13. Bf1 Bg4 {½-½ Flicke,A (1842)-Wiktor,R (1783) Ruhrgebiet Verbandsliga2 1213 2012 (9)}) 8. h3 {[%emt 0:06:41] White has an edge.} e5 {[%emt 0:16:28]} 9. d5 {[%emt 0:08:21]} Qd8 {[%emt 0:05:07][%cal Ob7b5]} 10. Be2 {[%emt 0:07:16]} cxd5 {[%emt 0:00:52]} 11. cxd5 {[%emt 0:00:05]} a5 {[%emt 0:00:11]} 12. Be3 {[%emt 0:06:35]} Bd7 {[%emt 0:04:03]} 13. Nd2 {[%emt 0:00:49][%cal Bf3d2,Bd2c4,Bc4b6][%mdl 32]} Ne8 {[%emt 0:05:17]} 14. Nc4 {[%emt 0:02:43]} Na6 {[%emt 0:06:40]} 15. Bb6 {[%emt 0:02:57]} Qe7 {[%emt 0:01:07]} 16. Bxa5 {[%emt 0:05:10]} f5 {[%emt 0:08:17]} 17. Nb6 {[%emt 0:01:47]} Rb8 {[%emt 0:00:31]} 18. b4 {[%emt 0:02:20] White has more active pieces. The black rooks are badly placed.} Nf6 {[%emt 0:03:42]} 19. Bd3 {[%emt 0:05:30]} (19. Qc1 $16) 19... fxe4 {[%emt 0:05:36]} 20. Nxe4 {[%emt 0:01:08]} Bf5 {[%emt 0:02:13]} 21. Qe2 {[%emt 0:04:03]} Nxe4 {[%emt 0:05:14]} 22. Bxe4 {[%emt 0:00:06]} Qf7 {[%emt 0:01:04]} (22... Qc7 $5 {[%cal Rc7c3]} 23. O-O Bxh3 $11) 23. f3 {[%emt 0:03:32]} (23. Bxf5 {feels hotter.} Qxf5 24. Rc1 Bh6 25. Rc2) 23... Bxe4 {[%emt 0:03:31]} 24. fxe4 {[%emt 0:00:45]} Qc7 {[%emt 0:00:18] And now ...Qc3+ would win.} 25. b5 {[%emt 0:07:03]} (25. Qc4 $1 $11 {keeps the balance.}) 25... Nc5 $17 {[%emt 0:02:16][%mdl 1024] Black has strong compensation.} 26. Nc4 {[%emt 0:01:14]} b6 {[%emt 0:01:15]} (26... Qd7 $1 $17 {[%cal Rd7b5]} 27. Rb1 Rf7) 27. Bb4 $11 {[%emt 0:00:08]} Rbc8 {[%emt 0:01:20][%cal Oc5e4] White must now prevent ...Nxe4!} 28. Rc1 {[%emt 0:01:46]} Qe7 {[%emt 0:03:09]} (28... Qd7 $11 {remains equal.} 29. Nb2 (29. Nxb6 $2 Nd3+ {[%mdl 64] Discovered Attack} 30. Qxd3 Rxc1+ 31. Ke2 Qc7 $19) 29... Bh6) 29. Bd2 {[%emt 0:04:57]} (29. Nxb6 $2 Nd3+ 30. Kd2 Nxc1 $19) (29. Rc2 $16) 29... Ra8 {[%emt 0:00:17]} (29... Qa7 $15 {keeps the upper hand.} 30. Nxd6 Rcd8) 30. Rc2 $16 {[%emt 0:01:08]} Ra4 {[%emt 0:00:33] Repels Bb4} 31. Rb2 {[%emt 0:06:54]} (31. Rf1 $14) 31... Qf6 $11 {[%emt 0:01:21][%cal Oa4c4] ...Rxc4! is the strong threat.} 32. Bb4 $2 {[%emt 0:03:56][%mdl 8192]} (32. Rc2 $1 $11) 32... Qg5 $19 {[%emt 0:02:17] ( -> ...Qc1+)} 33. Kd1 {[%emt 0:03:18] [#] Against Qc1+} Rxb4 {[%emt 0:02:33]} 34. Rxb4 $17 {[%emt 0:00:16]} Qxg3 {[%emt 0:00:03]} (34... Bh6 {looks sharper.} 35. Kc2 Qxg3 36. Rf1 Rf4) 35. Rf1 {[%emt 0:01:29] [#] Wards off Rf2} (35. Nxb6 Rf2 36. Re1 Rxe2 37. Rxe2 Bh6 $19) 35... Rxf1+ {[%emt 0:02:50]} ({Better is} 35... Qc3 $1 $17 {[%cal Rc3a1]} 36. Rxf8+ Bxf8) 36. Qxf1 $11 {[%emt 0:00:01]} Nxe4 {[%emt 0:00:46] aiming for ...Qc3.} 37. Rb3 {[%emt 0:01:45][%cal Bb4b3,Bb3a3,Ba3a7][%mdl 32] Dodges Qc3} Qg5 {[%emt 0:00:31]} 38. Kc2 {[%emt 0:01:50][%cal Ob3a3]} Nc5 {[%emt 0:00:45]} 39. Ra3 $40 {[%emt 0:00:22][%mdl 128] White attacks.} h5 $1 {[%emt 0:01:03]} 40. Ra7 {[%emt 0:00:00] White wants to mate with Qf7+. Some like it hot} Kh7 $2 {[%emt 0:00:00][%mdl 8192]} (40... Bf6 $11) 41. Qf7 {[%emt 0:02:54][%csl Ga7][%cal Rf7g7]} ({Not} 41. Nxb6 Qe3 $11) 41... Qh6 {[%emt 0:01:39]} 42. Nxd6 {[%emt 0:00:26] White used his chance.   Weighted Error Value: White=0.27 (precise) /Black=0.37} 1-0

[Event "European Women-ch 2023"]
[Site "Petrovac"]
[Date "2023.03.19"]
[Round "2.9"]
[White "Hrebenshchykova, Yelyzaveta"]
[Black "Kiolbasa, Oliwia"]
[Result "0-1"]
[ECO "D55"]
[WhiteElo "2289"]
[BlackElo "2406"]
[Annotator "TA"]
[PlyCount "83"]
[EventDate "2023.03.15"]
[EventType "swiss"]
[EventCountry "MNE"]
[SourceTitle "playchess.com"]
[Source "ChessBase"]
[SourceQuality "1"]
[TimeControl "40/5400+30:1800+30"]

{[%evp 21,83,10,72,49,44,52,69,72,80,48,83,77,77,58,82,70,75,75,89,78,85,68,72,73,71,60,53,0,0,0,0,0,247,254,243,242,239,230,4806,30,354,13,50,-888,-856,-5606,-5606,-5306,-1717,-29988,-2524,-29989,-29990,-29990,-29991,-29991,-29992,-29992,-29993,-29993,-29994,-29994,-29995,-29996]} 1. d4 {[%emt 0:00:04]} d5 {[%emt 0:00:11]} 2. c4 {[%emt 0:00:05]} e6 {[%emt 0:00:10]} 3. Nc3 {[%emt 0:00:06]} Nf6 {[%emt 0:00:13]} 4. Bg5 {[%emt 0:00:23]} Be7 {[%emt 0:02:00]} 5. e3 {[%emt 0:01:23]} O-O {[%emt 0:02:04]} 6. Nf3 {[%emt 0:00:51]} h6 {[%emt 0:04:06]} 7. Bxf6 {[%emt 0:01:47]} Bxf6 {[%emt 0:00:13]} 8. Rc1 {[%emt 0:01:02]} b6 {[%emt 0:07:08]} 9. Bd3 {[%emt 0:09:47]} Bb7 {[%emt 0:16:19]} 10. cxd5 {[%emt 0:12:16]} exd5 {[%emt 0:00:11]} 11. O-O {[%emt 0:01:36]} a6 {[%emt 0:17:54]} (11... c5 $11) 12. b4 {[%emt 0:26:43][%cal Bb2b4,Bb4b5][%mdl 32] D55: Queen's Gambit Declined: 4 Bg5 Be7: Lines without ...h6 and 6...h6 7 Bxf6.} Re8 {[%emt 0:04:32]} 13. Qb3 {[%emt 0:03:15]} Qd6 {[%emt 0:16:38]} 14. Rfe1 {[%emt 0:02:18] White is slightly better.} Nd7 {[%emt 0:02:19] [#]} 15. g3 $146 {[%emt 0:06:03]} ({Predecessor:} 15. b5 a5 16. e4 dxe4 17. Bxe4 Bxe4 18. Nxe4 Qf4 19. g3 Qf5 20. Rxc7 Rxe4 21. Rxe4 Qxe4 22. Rxd7 {½-½ Petrov,N (2548)-Zakaryan,D (2316) Olginka Orbit op 2022 (7)}) 15... Nf8 {[%emt 0:06:01]} 16. b5 {[%emt 0:05:16] bxa6 is the strong threat.} a5 {[%emt 0:01:00]} 17. e4 {[%emt 0:00:55] aiming for e5.} dxe4 {[%emt 0:10:40]} 18. Bxe4 {[%emt 0:02:15]} Bxe4 {[%emt 0:00:11]} 19. Nxe4 {[%emt 0:00:10]} Qd8 {[%emt 0:00:21]} 20. Nxf6+ {[%emt 0:03:49][%mdl 64] Discovered Attack} Qxf6 {[%emt 0:00:02]} 21. Rxe8 {[%emt 0:00:28]} (21. Rxc7 Rxe1+ 22. Nxe1 Ne6 $11) 21... Rxe8 {[%emt 0:00:02]} 22. Rxc7 {[%emt 0:00:17]} Ne6 {[%emt 0:00:20]} 23. Rc6 {[%emt 0:06:06]} (23. Rd7 {simplifies} Qf5 24. Qd5 Qxd5 25. Rxd5 Nc7 26. Rd6) 23... Qf5 {[%emt 0:00:09][%cal Oa5a4] Repels Qd3} 24. Rxb6 {[%emt 0:08:09]} (24. a4 $14) 24... Ng5 $11 {[%emt 0:00:21]} 25. Ne5 {[%emt 0:00:34]} Qe4 $40 {[%emt 0:03:32][%mdl 128] Black has some attack.} (25... Nh3+ $2 26. Kg2 $18) 26. h4 {[%emt 0:03:18]} Rxe5 {[%emt 0:03:12]} (26... Nh3+ $1 $11 {and Black stays safe.} 27. Kh2 Rxe5 28. Rb8+ (28. dxe5 Nxf2 29. Kg1 Nh3+ 30. Kh2 Nf2 $11) (28. Kxh3 $2 Qh1+ 29. Kg4 h5+ 30. Kf4 Qe4#) 28... Kh7 29. dxe5 (29. Qxf7 Rf5 $15) 29... Nxf2) 27. hxg5 {[%emt 0:02:31][%mdl 4096] Endgame KQR-KQR} (27. dxe5 $2 {too greedy.} Nf3+ $19) 27... Rf5 {[%emt 0:00:05] [#]} (27... Qe1+ $2 28. Kg2 Rxg5 29. Rb8+ Kh7 30. Qxf7 Qe4+ 31. Qf3 Qxd4 32. a4 $18) 28. Qe3 {[%emt 0:01:13] Inhibits Qe1+.} (28. gxh6 Qe1+ 29. Kg2 Qxf2+ 30. Kh3 Rh5+ 31. Kg4 Qf5#) 28... Qb1+ {[%emt 0:01:02]} 29. Kg2 {[%emt 0:00:16]} hxg5 $2 {[%emt 0:00:49]} (29... Rxg5 30. Qe8+ Kh7) 30. Rb8+ $2 {[%emt 0:00:27]} (30. g4 {Rb8+ would kill now.} Rxb5 31. Qe8+ Kh7 32. Rxb5) 30... Kh7 $18 {[%emt 0:00:10] [#]} 31. g4 $2 {[%emt 0:01:51]} ({Only move:} 31. a4 $1 $18) 31... Rf6 $1 $11 {[%emt 0:00:13] And now ...Rh6 would win. Chess con chili.} 32. Qe8 $2 {[%emt 0:00:37][%mdl 8192]} (32. Qxg5 {gets mated.} Qe4+ 33. Kf1 Qd3+ 34. Ke1 Qb1+ 35. Ke2 Qc2+ 36. Ke3 Qxf2+ 37. Kd3 Qf1+ 38. Kd2 Rf2+ 39. Kc3 Qe1+) (32. Re8 $14 Qxb5 33. Re5 Qb7+ 34. d5) 32... Rh6 $19 {[%emt 0:02:34]} 33. Qg8+ {[%emt 0:00:33]} Kg6 {[%emt 0:00:02]} 34. Rb6+ {[%emt 0:00:28]} f6 {[%emt 0:00:02]} 35. Qe8+ {[%emt 0:00:34]} Kh7 {[%emt 0:00:05] ( -> ...Qh1+)} 36. Kg3 {[%emt 0:00:31]} Qg1+ {[%emt 0:01:09] Black mates.} (36... Qxa2 $2 37. Qe4+ Rg6 38. Rb8 $18) 37. Kf3 {[%emt 0:00:05]} Rh3+ {[%emt 0:00:08][%mdl 64] Deflection} 38. Ke2 {[%emt 0:00:03]} Qxg4+ {[%emt 0:00:06]} 39. Ke1 {[%emt 0:00:46]} Rh1+ {[%emt 0:00:34]} 40. Kd2 {[%emt 0:00:00]} Qxd4+ {[%emt 0:00:00]} 41. Kc2 {[%emt 0:02:37]} Qxf2+ {[%emt 0:02:57]} ({Stronger than} 41... Qxb6 42. Qe4+ g6 43. Qxh1+ Kg7 44. Qc6 Qxf2+ 45. Kb3 Qg3+ 46. Ka4 Qf4+ 47. Kxa5 $17) 42. Kd3 {[%emt 0:00:30] Black used his chance.   Weighted Error Value: White=1.16/Black=0.19 (very precise)} 0-1